[Event "44th Chess Olympiad Open 2022"]
[Site "Chennai"]
[Date "2022.08.03"]
[Round "6.29"]
[White "Arias Santana, Mauricio"]
[Black "Megaranto, Susanto"]
[Result "0-1"]
[WhiteElo "2318"]
[BlackElo "2529"]
[Annotator "TA"]
[PlyCount "84"]
[EventDate "2022.??.??"]
[TimeControl "60"]

{[%evp 10,84,17,15,13,6,13,9,8,10,0,10,29,19,21,14,33,20,16,0,12,0,29,19,23,4,
16,9,36,-8,-3,-14,0,0,0,0,0,-46,-41,-59,-45,-153,-145,-157,-25,-36,-41,-128,
-160,-120,-56,-295,-281,-291,-282,-294,-288,-293,-250,-281,-251,-372,-431,-391,
-420,-420,-426,-432,-429,-429,-422,-318,-334,-347,-340,-691,-676]} 1. Nf3 {
[%emt 0:00:20]} d5 {[%emt 0:00:13]} 2. g3 {[%emt 0:00:07]} c6 {[%emt 0:00:29]}
3. Bg2 {[%emt 0:00:06]} Bf5 {[%emt 0:01:33]} 4. O-O {[%emt 0:00:28]} e6 {
[%emt 0:00:09]} 5. d3 {[%emt 0:00:08]} Nf6 {[%emt 0:00:31]} 6. Nh4 {[%emt 0:00:
00]} Bg4 {[%emt 0:02:12] A07: Réti Opening: New York and Capablanca Systems.}
7. h3 {[%emt 0:00:02]} Bh5 {[%emt 0:00:06]} 8. f4 {[%emt 0:00:40]} Nfd7 {
[%emt 0:03:26] The position is equal.} 9. Qe1 {[%emt 0:00:38]} Be7 {[%emt 0:00:
00]} 10. Nf3 {[%emt 0:08:45]} Bxf3 {[%emt 0:00:47]} 11. Bxf3 {[%emt 0:00:05]}
O-O {[%emt 0:05:45]} 12. e4 {[%emt 0:00:14]} a5 {[%emt 0:00:21] [#]} 13. Kh1
$146 {[%emt 0:00:39]} ({Predecessor:} 13. a4 Na6 14. Qe2 Ndc5 15. e5 d4 16. Nd2
Nb4 17. Ne4 Qb6 18. Kg2 Nxe4 19. Bxe4 {1-0 (38) Yakubboev,N (2621)-Dmitrenko,V
(2441) Tashkent 2021}) 13... Na6 {[%emt 0:00:39]} 14. Qe2 {[%emt 0:14:43]} a4 {
[%emt 0:04:17]} 15. a3 {[%emt 0:00:09]} b5 {[%emt 0:00:43]} 16. Be3 {[%emt 0:
00:00]} Rb8 {[%emt 0:11:34]} 17. Nc3 {[%emt 0:10:00]} Nc7 {[%emt 0:02:29]} 18.
Qf2 {[%emt 0:04:27]} f5 {[%emt 0:18:16]} 19. g4 {[%emt 0:10:01]} fxe4 {[%emt 0:
00:00]} 20. dxe4 {[%emt 0:01:13]} d4 {[%emt 0:00:41]} 21. Bxd4 {[%emt 0:00:14]
Black must now prevent Be3.} e5 {[%emt 0:01:42]} (21... Rxf4 22. Rad1 $14) 22.
fxe5 {[%emt 0:13:49]} Ne6 {[%emt 0:01:30]} (22... c5 23. Be3 $16) 23. Be3 {
[%emt 0:04:06]} (23. Rad1 $11 {might be stronger.}) 23... Nxe5 $15 {[%emt 0:00:
00]} 24. Rad1 {[%emt 0:03:57]} Qc7 {[%emt 0:01:34] Black has compensation.} 25.
Qe2 {[%emt 0:02:38]} (25. Qg2 $1 $15) 25... Nc4 $36 {[%emt 0:17:30] Black has
strong initiative. Pair of Knights!} 26. Bc1 {[%emt 0:02:30][%cal Ye4e5] [#]}
Qg3 {[%emt 0:01:10] Black is much more active.} (26... Bg5 $1 $17 {[%cal Rg5c1]
Threatens to win with ...Bxc1.} 27. e5 (27. Bxg5 Nxg5 28. b3 Qg3 $17) 27...
Bxc1 28. Rxc1 Nxb2) 27. Qg2 $11 {[%emt 0:00:00]} Qh4 {[%emt 0:00:44]} 28. e5 {
[%emt 0:00:25]} (28. Be2 $15) 28... Bg5 $17 {[%emt 0:08:24]} 29. Be2 {[%emt 0:
09:37]} Nxe5 {[%emt 0:00:00]} (29... Bxc1 $17 30. Bxc4 bxc4 31. Rxc1 Nf4) 30.
Rf5 $2 {[%emt 0:00:44] [#] White does not recover from this.} ({White should
try} 30. Bxg5 $15 Qxg5 31. Qg3) 30... Bxc1 $19 {[%emt 0:00:00]} 31. Rxc1 {
[%emt 0:00:37]} Nf4 {[%emt 0:00:16]} 32. Qh2 {[%emt 0:00:19]} Rxf5 {[%emt 0:01:
05]} 33. gxf5 {[%emt 0:00:02]} Rf8 {[%emt 0:00:00][%cal Yb8f8,Yf8f5,Yf5f1]} ({
Not} 33... Qxh3 34. Qxh3 Nxh3 35. Re1 $17) 34. Rg1 {[%emt 0:01:23]} Rxf5 {
[%emt 0:01:58]} 35. Rg3 {[%emt 0:00:28]} (35. Bg4 $142 Rf8 36. Qg3) 35... Nxe2
{[%emt 0:00:48]} 36. Nxe2 {[%emt 0:00:00]} Rf1+ {[%emt 0:00:28]} 37. Ng1 {
[%emt 0:00:29]} Qf4 {[%emt 0:00:45]} 38. Qe2 {[%emt 0:01:04]} Rf2 {[%emt 0:00:
30]} (38... Qxg3 $2 {loses.} 39. Qxf1 Qg5 40. b3 $19) 39. Qe3 {[%emt 0:00:11]}
Qxe3 {[%emt 0:00:36]} 40. Rxe3 {[%emt 0:00:00]} Nc4 {[%emt 0:00:15]} ({Worse is
} 40... Rxc2 41. Rxe5 Rxb2 42. Re2 $17) 41. Rc3 {[%emt 0:30:02]} Nxb2 {[%emt 0:
30:29] aiming for ...Nc4.} 42. Rxc6 {[%emt 0:00:07]} (42. Nf3) 42... Nc4 {
[%emt 0:00:06] Weighted Error Value: White=0.43/Black=0.13 (very precise)} 0-1

[Event "44th Chess Olympiad Open 2022"]
[Site "Chennai"]
[Date "2022.08.03"]
[Round "6.29"]
[White "Chaves Sanchez, Gabriel A"]
[Black "Taher, Yoseph Theolifus"]
[Result "0-1"]
[WhiteElo "2125"]
[BlackElo "2463"]
[Annotator "TA"]
[PlyCount "138"]
[EventDate "2022.??.??"]
[TimeControl "60"]

{[%evp 13,138,14,41,16,30,12,3,2,5,-16,0,0,-8,-14,-8,-9,-9,-11,-9,-24,-18,-31,
-24,-39,-4,-17,-24,-13,-9,-17,-10,-22,0,-22,-8,-15,-10,-12,-3,-9,0,-5,-4,-43,
-9,-60,-55,-55,-55,-55,-55,-61,-61,-61,-60,-80,-80,-80,-80,-73,-55,-71,-70,-70,
-71,-66,-59,-84,-74,-71,-73,-74,-59,-77,-77,-77,-77,-84,-77,-84,-84,-85,-85,
-85,-85,-85,-91,-91,-91,-89,-84,-91,-75,-76,-41,-59,-41,-83,-60,-60,0,-41,-41,
-77,-78,-91,-91,-91,-76,-91,-91,-91,-91,-91,-91,-180,-180,-180,-180,-180,-180,
-433,-143,-401,-420,-1092,-1038]} 1. e4 {[%emt 0:00:08]} c5 {[%emt 0:00:22]} 2.
Nf3 {[%emt 0:00:26]} a6 {[%emt 0:00:28]} 3. c3 {[%emt 0:00:05]} d5 {[%emt 0:00:
00]} 4. exd5 {[%emt 0:00:08]} Qxd5 {[%emt 0:00:07]} 5. d4 {[%emt 0:00:13]} Nf6
{[%emt 0:00:19]} 6. Be2 {[%emt 0:00:10]} e6 {[%emt 0:00:13]} 7. O-O {[%emt 0:
00:00]} Nc6 {[%emt 0:00:06]} 8. h3 {[%emt 0:09:18] B28: Sicilian: 2 Nf3 a6 
(O'Kelly Variation).} cxd4 {[%emt 0:00:35]} 9. cxd4 {[%emt 0:00:06]} Be7 {
[%emt 0:00:05]} 10. Nc3 {[%emt 0:00:07] The position is equal.} Qd6 {[%emt 0:
00:00] [#]} 11. Qa4 $146 {[%emt 0:03:55]} ({Predecessor:} 11. Be3 O-O 12. Rc1
b5 13. Qd2 Bb7 14. Rfd1 Rfd8 15. Qe1 Rac8 16. Ng5 Qb8 17. Bf3 Nb4 18. a3 Bxf3
19. Nxf3 Nbd5 {0-1 (47) Harika,D (2515)-Artemiev,V (2716) Chess.com INT 2020})
11... O-O {[%emt 0:00:33]} 12. Rd1 {[%emt 0:00:38]} h6 {[%emt 0:04:21]} 13. a3
{[%emt 0:09:51]} Rd8 {[%emt 0:02:39]} 14. b4 {[%emt 0:02:56]} Bd7 {[%emt 0:00:
00][%cal Yc6d4]} 15. Qb3 {[%emt 0:00:28]} Be8 {[%emt 0:00:43]} 16. Be3 {
[%emt 0:08:54]} Bf8 {[%emt 0:04:55]} 17. Rac1 {[%emt 0:03:03][%cal Yd4d5]} Ne7
{[%emt 0:01:07]} 18. Ne5 {[%emt 0:04:38]} Ned5 {[%emt 0:02:29]} 19. Nxd5 {
[%emt 0:01:42]} Nxd5 {[%emt 0:00:20]} 20. Bd2 {[%emt 0:03:31]} Rac8 {[%emt 0:
00:00]} 21. Bf3 {[%emt 0:03:03]} Rxc1 {[%emt 0:02:02]} 22. Rxc1 {[%emt 0:00:52]
} Qb6 {[%emt 0:00:51]} 23. Qb2 {[%emt 0:04:40]} Bb5 {[%emt 0:09:35]} 24. Nc4 {
[%emt 0:05:36]} Bxc4 {[%emt 0:00:09]} 25. Rxc4 {[%emt 0:00:07]} Qd6 {[%emt 0:
00:00]} 26. Qc1 {[%emt 0:03:05]} Qd7 {[%emt 0:01:15]} 27. Rc2 {[%emt 0:10:08]}
Be7 {[%emt 0:03:30]} 28. Bc3 {[%emt 0:08:57]} Bg5 {[%emt 0:02:38]} 29. Qd1 {
[%emt 0:00:32]} (29. Bd2 $11) 29... Nxc3 $15 {[%emt 0:02:46]} 30. Rxc3 {
[%emt 0:00:09][%cal Yd4d5]} Bf6 {[%emt 0:00:03]} ({Much weaker is} 30... Qxd4
31. Qxd4 Rxd4 32. Bxb7 $11) 31. Qc1 {[%emt 0:05:00]} Qxd4 {[%emt 0:05:37]} 32.
Rc8 {[%emt 0:01:23]} b6 {[%emt 0:11:01]} 33. Rxd8+ {[%emt 0:00:22]} Bxd8 {
[%emt 0:00:49] Endgame KQB-KQB} 34. Qc6 {[%emt 0:01:31]} g6 {[%emt 0:05:50]}
35. g3 {[%emt 0:02:13] Prevents Bh4.} Kg7 {[%emt 0:01:20]} 36. Kg2 {[%emt 0:00:
11]} Bf6 {[%emt 0:02:55]} 37. Qc2 {[%emt 0:04:05]} a5 {[%emt 0:00:00]} 38. bxa5
{[%emt 0:00:00]} bxa5 {[%emt 0:00:03]} 39. a4 {[%emt 0:00:00]} Be7 {[%emt 0:01:
25][%cal Yf6e7,Ye7c5,Yc5d4]} 40. Be4 {[%emt 0:00:00]} h5 {[%emt 0:00:24]} 41.
h4 {[%emt 0:30:24]} Bc5 {[%emt 0:35:31]} 42. Bc6 {[%emt 0:06:11]} Qd6 {[%emt 0:
05:09]} 43. Bb7 {[%emt 0:00:00]} Qb6 {[%emt 0:00:00]} 44. Bf3 {[%emt 0:00:03]}
Bd4 {[%emt 0:01:11]} 45. Be4 {[%emt 0:00:00]} Qb4 {[%emt 0:00:00]} 46. Bc6 {
[%emt 0:00:00]} Bb6 {[%emt 0:00:00]} 47. Bb5 {[%emt 0:00:00]} Qd4 {[%emt 0:00:
00]} 48. Bc6 {[%emt 0:00:00]} e5 {[%emt 0:00:00]} 49. Qa2 {[%emt 0:00:00]} e4 {
[%emt 0:00:00]} 50. Be8 {[%emt 0:00:00]} Qf6 {[%emt 0:00:00] Active counter
play!} 51. Qe2 {[%emt 0:00:00] Prevents Qf3+.} Qe5 {[%emt 0:00:00]} 52. Bb5 {
[%emt 0:00:00]} f5 {[%emt 0:00:00]} 53. Qd2 {[%emt 0:00:00]} Bd4 {[%emt 0:00:
00]} (53... e3 $5 54. fxe3 Bxe3 55. Qd7+ Kh6 $17) 54. Bc6 {[%emt 0:00:00]} Qc5
{[%emt 0:00:00] [#] ...e3 is the strong threat.} 55. Bb7 {[%emt 0:00:00]} Qb6 {
[%emt 0:00:00] Inhibits Ba6. And now ... e3 would win.} 56. Bd5 {[%emt 0:00:14]
} Qc5 {[%emt 0:00:00]} (56... e3 $15 57. fxe3 Bxe3 58. Qc3+ Bd4) 57. Ba2 {
[%emt 0:01:12]} Qe5 {[%emt 0:00:00] Inhibits Be6.} 58. Qc2 {[%emt 0:02:02]} e3
{[%emt 0:00:04]} 59. fxe3 {[%emt 0:01:17]} Bxe3 {[%emt 0:00:30]} 60. Qc4 {
[%emt 0:00:28]} Bc5 {[%emt 0:00:15]} 61. Qd5 {[%emt 0:01:35]} Qe2+ {[%emt 0:00:
52]} 62. Kh3 {[%emt 0:00:24] White wants to mate with Qg8+.} Qf1+ {[%emt 0:00:
06]} 63. Qg2 {[%emt 0:00:11]} Qd1 {[%emt 0:00:00] aiming for ...Qg4+.} 64. Qb2+
{[%emt 0:01:32]} (64. Qd5 $17 {was called for.} Bd4 65. Bb3 (65. Bc4 Kh6 $17)
65... Qf1+ 66. Qg2) 64... Bd4 $19 {[%emt 0:00:00]} 65. Qb7+ {[%emt 0:00:10]}
Kh6 {[%emt 0:00:05] ( -> ...f4)} 66. Bg8 {[%emt 0:01:30][%csl Gg8][%cal Rb7h7]
[#]} Bg7 $1 {[%emt 0:01:42]} 67. Qg2 $2 {[%emt 0:02:08]} (67. Qd5 Qg4+ 68. Kh2)
67... Qg4+ {[%emt 0:00:12]} 68. Kh2 {[%emt 0:00:19]} Be5 {[%emt 0:00:17]
Hoping for ...f4.} 69. Bd5 {[%emt 0:00:47]} (69. Qd2+ $142 f4 70. Kh1) 69...
Qxh4+ {[%emt 0:01:46] Weighted Error Value: White=0.09 (flawless) /Black=0.08 
(flawless)} 0-1

[Event "44th Chess Olympiad Open 2022"]
[Site "Chennai"]
[Date "2022.08.03"]
[Round "6.30"]
[White "Bachmann, Axel"]
[Black "Al Qudaimi, Basheer"]
[Result "1-0"]
[WhiteElo "2588"]
[BlackElo "2424"]
[Annotator "TA"]
[PlyCount "53"]
[EventDate "2022.??.??"]
[TimeControl "60"]

{[%evp 9,53,-6,0,-17,-13,-7,0,2,2,-7,22,0,-4,-27,-13,-37,-22,-34,32,17,58,73,
104,107,83,87,247,249,322,272,323,313,396,409,566,563,544,530,810,801,770,740,
735,663,1056,1023]} 1. Nf3 {[%emt 0:00:04]} d5 {[%emt 0:00:24]} 2. b3 {[%emt 0:
00:00]} Bg4 {[%emt 0:02:13][%cal Yc8g4,Yg4h5,Yh5g6]} 3. e3 {[%emt 0:00:00]} Nd7
{[%emt 0:01:58]} 4. Bb2 {[%emt 0:00:10]} Ngf6 {[%emt 0:00:58]} 5. d3 {[%emt 0:
03:41]} e5 {[%emt 0:11:34]} 6. Nbd2 {[%emt 0:03:46] A06: Réti Opening: 1 Nf3
d5.} Bd6 {[%emt 0:05:46]} 7. h3 {[%emt 0:00:13]} Bh5 {[%emt 0:00:00]} 8. g4 {
[%emt 0:00:43] The position is equal.} Bg6 {[%emt 0:00:01]} 9. Nh4 {[%emt 0:02:
21]} Qe7 {[%emt 0:01:05]} 10. Bg2 {[%emt 0:00:00]} c6 11. a3 {[%emt 0:19:00] 
[#]} Nc5 $146 ({Predecessor:} 11... O-O-O 12. Nxg6 fxg6 13. c4 Nc5 14. Ke2 e4
15. d4 Nd3 16. Qc2 Kb8 17. b4 Rhf8 {1-0 (27) Suarez Uriel,A (2376)-Weetik,V 
(2423) Chess.com INT 2021}) 12. Qe2 {[%emt 0:24:06]} (12. O-O $5 {[%cal Rf2f4]}
) 12... Nfd7 {[%emt 0:06:53]} 13. Nxg6 {[%emt 0:00:00]} fxg6 ({Black should
play} 13... hxg6 $15 14. c4 dxc4 15. Nxc4 Nxb3) 14. c4 $14 {[%emt 0:15:45]} e4
{[%emt 0:15:37]} 15. dxe4 {[%emt 0:00:00]} dxe4 {[%emt 0:00:00] Strongly
threatening ...Nd3+.} 16. O-O {[%emt 0:00:00]} Bc7 {[%emt 0:05:50] [#]} 17. b4
$1 {[%emt 0:00:00]} Qd6 {[%emt 0:06:36] [#] This move loses the game for Black.
} (17... Na4 $16 {was necessary.}) 18. Rfd1 $1 $18 {[%emt 0:00:00]} Qh2+ {
[%emt 0:00:12]} 19. Kf1 {[%emt 0:00:05]} Ne6 {[%emt 0:11:29]} 20. Nxe4 {
[%emt 0:00:38]} O-O-O {[%emt 0:08:46]} 21. c5 {[%emt 0:00:31]} Nf6 {[%emt 0:02:
38]} 22. Nxf6 {[%emt 0:07:13] White is clearly winning.} gxf6 {[%emt 0:00:00]}
23. Bxf6 {[%emt 0:00:11]} Rxd1+ {[%emt 0:00:09]} 24. Rxd1 {[%emt 0:00:06]} Rf8
{[%emt 0:00:27]} 25. g5 {[%emt 0:00:07]} Kb8 {[%emt 0:00:00]} 26. Qc4 {[%emt 0:
03:07]} Re8 {[%emt 0:01:41]} 27. b5 {[%emt 0:00:21] Weighted Error Value:
White=0.09 (flawless) /Black=0.47} 1-0

[Event "44th Chess Olympiad Open 2022"]
[Site "Chennai"]
[Date "2022.08.03"]
[Round "6.30"]
[White "Cubas, Jose Fernando"]
[Black "Al-Aqrabi, Saleh"]
[Result "1-0"]
[WhiteElo "2451"]
[BlackElo "2172"]
[Annotator "TA"]
[PlyCount "61"]
[EventDate "2022.??.??"]
[TimeControl "60"]

{[%evp 20,61,51,44,106,113,179,201,198,157,166,162,302,296,515,519,512,489,631,
437,414,238,230,244,584,574,3375,2926,29988,29989,29989,29990,29991,29992,
29992,29993,29993,29994,29995,29996,29996,29997,29998,29999]} 1. e4 {[%emt 0:
00:00][%cal Ye2e4,Ye4e5]} e6 {[%emt 0:00:06]} 2. d4 {[%emt 0:00:04]} d5 {
[%emt 0:00:06]} 3. Nd2 {[%emt 0:00:26]} Nf6 {[%emt 0:00:19]} 4. e5 {[%emt 0:00:
15]} Nfd7 {[%emt 0:00:05]} 5. c3 {[%emt 0:00:32]} c5 {[%emt 0:00:08]} 6. Bd3 {
[%emt 0:00:05]} Nc6 {[%emt 0:00:14]} 7. Ndf3 {[%emt 0:00:18]} Be7 {[%emt 0:00:
42]} 8. Ne2 {[%emt 0:02:06]} Qb6 {[%emt 0:00:10]} 9. O-O {[%emt 0:00:00]} O-O {
[%emt 0:00:40]} 10. Nf4 {[%emt 0:00:41]} cxd4 {[%emt 0:02:35]} 11. cxd4 {
[%emt 0:00:05]} Nb4 {[%emt 0:00:09] [#] C06: French Tarrasch: 3...Nf6 4 e5
Nfd7 5 Bd3 main lines.} (11... Re8 $14) 12. Bb1 $1 $16 {[%emt 0:00:20]} f6 {
[%emt 0:02:44]} (12... Qd8 $16) 13. a3 $18 {[%emt 0:01:56]} Na6 {[%emt 0:00:04]
White is clearly better.} 14. Qd3 {[%emt 0:02:54]} f5 {[%emt 0:00:04]} 15. g4 {
[%emt 0:00:23] [#]} g6 $146 {[%emt 0:04:09]} (15... Nc7 {was necessary.} 16.
gxf5 Rxf5 17. Nxe6 Nxe5 18. Qxf5 Nxf3+ 19. Qxf3 Bxe6) ({Predecessor:} 15... Nc7
16. Kh1 Qa6 17. Rg1 Qxd3 18. Bxd3 Nb6 19. b3 Bd7 20. gxf5 exf5 21. Ng5 Bxg5 22.
Rxg5 {1-0 (61) Jakobsen,M (2146)-Christensen,J (1951) Aarhus 2003}) 16. Kh1 {
[%emt 0:01:45]} Nac5 $2 {[%emt 0:06:31]} (16... Nc7 {might work better.} 17.
gxf5 exf5) 17. dxc5 {[%emt 0:01:25]} Nxc5 {[%emt 0:00:13]} 18. Qd1 {[%emt 0:00:
00]} Nb3 {[%emt 0:01:06]} 19. Be3 {[%emt 0:01:47]} d4 {[%emt 0:02:39] [#]} 20.
Bxd4 {[%emt 0:02:17]} (20. Nxd4 $142 $1 Nxd4 21. Bxd4 Qc6+ 22. f3 fxg4 23. Be4)
20... Nxd4 {[%emt 0:00:07]} 21. Qxd4 {[%emt 0:01:58]} ({And not} 21. Nxd4 Rd8
22. Nfe2 Bc5 $11) 21... fxg4 $2 {[%emt 0:00:31] [#]} (21... Qc6) 22. Nxg6 $1 {
[%emt 0:00:54]} hxg6 {[%emt 0:01:58]} (22... Qxd4 23. Nxe7+) 23. Qxg4 {[%emt 0:
00:00]} Rf7 {[%emt 0:00:31]} 24. Bxg6 {[%emt 0:01:41] White mates.} Rg7 {
[%emt 0:07:39]} 25. Rg1 {[%emt 0:00:37][%cal Yf1g1,Yg1g6,Yg6g7]} Bf8 {[%emt 0:
01:29]} 26. Qh5 {[%emt 0:01:01][%csl Gh5][%cal Rg6f7]} Qc7 {[%emt 0:00:00]} 27.
Rac1 {[%emt 0:01:36]} Qd7 {[%emt 0:04:20]} 28. Rc4 {[%emt 0:02:00]} b5 {
[%emt 0:03:54]} 29. Rh4 {[%emt 0:00:58][%csl Gh4][%cal Rh5h8]} Rxg6 {[%emt 0:
00:00]} 30. Rxg6+ {[%emt 0:00:21]} Kf7 {[%emt 0:01:16] [#]} 31. Rg7+ $3 {
[%emt 0:00:11] White took control after the opening. Weighted Error Value:
White=0.21 (precise) /Black=0.89} 1-0

[Event "44th Chess Olympiad Open 2022"]
[Site "Chennai"]
[Date "2022.08.03"]
[Round "6.30"]
[White "Al-Zendani, Zendan"]
[Black "Delgado Ramirez, Neuris"]
[Result "0-1"]
[WhiteElo "2284"]
[BlackElo "2614"]
[Annotator "TA"]
[PlyCount "96"]
[EventDate "2022.??.??"]
[TimeControl "60"]

{[%evp 13,96,0,13,-4,34,41,30,0,0,0,0,-7,0,0,0,-26,-29,-29,-35,-33,-31,-42,-30,
-19,-29,-96,16,31,50,-52,-26,-37,0,0,69,82,131,112,112,13,35,0,7,0,0,-25,0,0,0,
0,0,0,0,-27,-28,-37,-37,-39,-8,-31,0,-137,-36,-169,0,0,0,0,0,-28,0,0,19,-331,0,
0,8,-240,-229,-204,-187,-29983,-29984,-29984,-29985]} 1. e4 {[%emt 0:00:11]} c5
{[%emt 0:00:05]} 2. Nf3 {[%emt 0:00:22]} d6 {[%emt 0:00:06]} 3. d4 {[%emt 0:00:
00]} cxd4 {[%emt 0:00:07]} 4. Nxd4 {[%emt 0:00:04]} Nf6 {[%emt 0:00:06]} 5. Nc3
{[%emt 0:00:08]} a6 {[%emt 0:00:06]} 6. Bg5 {[%emt 0:01:29]} Nbd7 {[%emt 0:00:
00]} 7. f4 {[%emt 0:04:00]} Qc7 {[%emt 0:00:33]} 8. Qf3 {[%emt 0:01:17] B94:
Sicilian Najdorf: 6 Bg5 Nbd7.} h6 {[%emt 0:02:16] 8...b5 is the modern
continuation.} 9. Bxf6 {[%emt 0:04:13]} Nxf6 {[%emt 0:00:09]} 10. Nd5 {[%emt 0:
00:00] White has an edge.} Nxd5 {[%emt 0:00:32]} 11. exd5 {[%emt 0:00:06]} g6 {
[%emt 0:01:43]} 12. O-O-O {[%emt 0:25:25]} Bg7 {[%emt 0:00:45]} 13. Kb1 {
[%emt 0:01:57]} Bd7 {[%emt 0:00:51] [#]} 14. Qe4 $146 {[%emt 0:02:26][%cal
Yd4e6]} ({Predecessor:} 14. g4 O-O-O 15. h4 h5 16. g5 Qc5 17. c3 Kb8 18. Bh3
Bxh3 19. Rxh3 Qc8 20. Rhh1 {½-½ (64) Niknaddaf,A (2218)-Feyli,S (2213)
Esfahan 2016}) 14... Rc8 {[%emt 0:02:59] Threatens to win with ...Bxd4.} 15.
Bd3 {[%emt 0:07:27][%cal Yd4e6]} Qb6 {[%emt 0:02:52]} 16. Nb3 {[%emt 0:01:41]}
a5 {[%emt 0:03:08] aiming for ...a4.} 17. Rhe1 {[%emt 0:03:42][%csl Ge1][%cal
Re4e7]} O-O {[%emt 0:01:01] Strongly threatening ...a4.} 18. Qe3 {[%emt 0:00:
00]} Qc7 {[%emt 0:02:03]} 19. f5 {[%emt 0:05:27]} (19. Qxe7 $2 a4 20. f5 axb3
21. cxb3 gxf5 $19) (19. a3 $11 {remains equal.}) 19... gxf5 {[%emt 0:06:03]} (
19... Bxf5 20. Bxf5 gxf5 21. c3 $14) (19... a4 $17 20. Nd4 Qb6) 20. Nd4 $11 {
[%emt 0:06:29]} Qb6 {[%emt 0:01:56]} 21. Nb3 {[%emt 0:03:48]} (21. c3 $1 $14)
21... Qxe3 $15 {[%emt 0:08:51]} 22. Rxe3 Be5 {[%emt 0:00:37]} 23. Nxa5 {
[%emt 0:02:32][%cal Yb3a5,Ya5c4,Yc4b6,Yb6d5,Yd5f4]} Rc5 {[%emt 0:00:00]} (23...
f4 $11 24. Ree1 Bg4) 24. Nc4 $14 {[%emt 0:00:00]} Rxd5 {[%emt 0:00:00]} ({
Better is} 24... Kg7) 25. Nb6 $1 $16 {[%emt 0:00:00][%csl Yd5,Yd7]} Rxd3 {
[%emt 0:00:03]} 26. Rdxd3 {[%emt 0:00:12]} (26. Rexd3 Bc6 $14) (26. cxd3 $16
Be6 27. d4) 26... Bc6 $11 {[%emt 0:00:48]} 27. Nd5 {[%emt 0:00:36]} Re8 {
[%emt 0:00:31]} 28. g3 {[%emt 0:00:15]} Kg7 {[%emt 0:00:21]} 29. a3 {[%emt 0:
00:00]} e6 {[%emt 0:00:56] Black has compensation.} 30. Nf4 {[%emt 0:00:03]}
Be4 {[%emt 0:00:39] A strong pair of Bishops.} 31. Rd2 {[%emt 0:01:07]} Kf6 {
[%emt 0:02:41]} 32. Rb3 {[%emt 0:03:59]} Rg8 {[%emt 0:00:00]} 33. Rb6 {[%emt 0:
02:31]} Bxf4 {[%emt 0:02:23]} 34. gxf4 {[%emt 0:00:31] Endgame KRR-KRB} Rg1+ {
[%emt 0:00:39]} 35. Ka2 {[%emt 0:00:58]} Rf1 {[%emt 0:00:03] Inhibits Rf2.} 36.
Rbxd6 {[%emt 0:02:22]} Rxf4 {[%emt 0:00:09]} 37. c4 {[%emt 0:01:21]} (37. R6d4
$1 $11) 37... Ke5 {[%emt 0:01:27]} (37... Rf1 $1 $17 {...f4 is the strong
threat.} 38. R6d4 Re1) 38. b4 {[%emt 0:00:48]} ({White should play} 38. Rd7 $15
) 38... Rf1 $2 {[%emt 0:01:03]} (38... Rg4 $1 $19 {And now ...f4 would win.}
39. Rd7 f4) 39. Rd7 {[%emt 0:00:00]} f4 {[%emt 0:00:00]} 40. Rxf7 {[%emt 0:00:
30]} f3 {[%emt 0:00:07]} 41. b5 {[%emt 0:30:23]} Bf5 {[%emt 0:30:24]} (41...
Bg6 $5 {[%cal Rg6f7]} 42. Rf8 (42. Rxb7 f2 $17) 42... Bf5 $15) 42. Kb3 {
[%emt 0:03:30]} ({Don't play} 42. Rxb7 f2 43. Re2+ Kd4 44. Rxf2 (44. Rd7+ $2
Kxc4 45. Rc7+ Kd4 $19) 44... Rxf2+ 45. Kb3 e5 $17) 42... Ke4 {[%emt 0:06:40]}
43. c5 $2 {[%emt 0:01:37]} (43. Rxb7 $11 {and White has nothing to worry.} f2
44. Rb2) 43... Ke3 $2 {[%emt 0:03:45]} ({Less strong is} 43... f2 44. Rb2 $16)
(43... Rb1+ $1 $19 44. Ka4 Ke3) 44. Rb2 {[%emt 0:01:03]} f2 {[%emt 0:10:41]}
45. c6 $2 {[%emt 0:00:00] [#]} ({Not} 45. Rxb7 $2 Rb1 46. Rxb1 Bxb1 $19) (45.
Kb4 $11 {and White is okay.}) 45... bxc6 $1 $19 {[%emt 0:00:00]} 46. b6 {
[%emt 0:00:00] Black must now prevent b7.} Rd1 {[%emt 0:00:00]} 47. b7 $2 {
[%emt 0:04:44] [#]} (47. Rxf2 $19 Kxf2 48. b7) 47... f1=Q $1 {[%emt 0:00:00]}
48. b8=Q {[%emt 0:01:26]} Qd3+ {[%emt 0:12:16] Weighted Error Value: White=0.
66/Black=0.29 (precise)} 0-1